fUSD/lending_fUSD_20260115
["ID","MTS","AMOUNT","RATE_DAILY","PERIOD"]
[402054862,1768500638192,-1254.04871866,0.00017662,2]
[402054863,1768500638203,-1254.04871866,0.00017662,2]
[402054864,1768500638213,-1254.04871866,0.00017662,2]
[402054865,1768500638223,-1254.04871866,0.00017662,2]
[402054866,1768500638232,-1254.04871866,0.00017662,2]
[402054867,1768500638242,-1254.04871866,0.00017662,2]
[402054868,1768500638252,-1254.04871866,0.00017662,2]
[402054869,1768500638263,-1254.04871866,0.00017662,2]
[402054870,1768500638273,-1254.04871866,0.00017662,2]
[402054871,1768500638282,-1231.24783285,0.00017662,2]
[402054872,1768500638292,-1231.24783285,0.00017662,2]
[402054873,1768500638301,-1231.24783285,0.00017662,2]
[402054874,1768500638311,-1231.24783285,0.00017662,2]
[402054875,1768500638320,-1231.24783285,0.00017662,2]
[402054876,1768500638330,-1231.24783285,0.00017662,2]
[402054877,1768500638339,-1231.24783285,0.00017662,2]
[402054878,1768500638349,-1231.24783285,0.00017662,2]
[402054879,1768500638359,-1231.24783285,0.00017662,2]
[402054880,1768500638368,-1231.24783285,0.00017662,2]
[402054881,1768500638378,-1231.24783285,0.00017662,2]
[402054882,1768500638387,-1231.24783285,0.00017662,2]
[402054883,1768500638397,-1231.24783285,0.00017662,2]
[402054884,1768500638407,-1231.24783285,0.00017662,2]
[402054885,1768500638417,-1231.24783285,0.00017662,2]
[402054886,1768500638427,-1231.24783285,0.00017662,2]
[402054887,1768500638437,-1231.24783285,0.00017662,2]
[402054888,1768500638446,-1231.24783285,0.00017662,2]
[402054889,1768500638708,-1231.24783285,0.00017662,2]
[402054890,1768500638719,-1231.24783285,0.00017662,2]
[402054891,1768500638728,-1231.24783285,0.00017662,2]
[402054892,1768500638737,-1231.24783285,0.00017662,2]
[402054893,1768500638747,-2948.80314431,0.00017662,2]
[402054894,1768500638757,-289.39001262,0.00017662,2]
[402054895,1768500638766,-500.0,0.00017662,2]
[402054896,1768500638776,-500.0,0.00017662,2]
[402054897,1768500638786,-500.0,0.00017662,2]
[402054898,1768500638796,-500.0,0.00017662,2]
[402054899,1768500638805,-1020.08839075,0.00017662,2]
[402054900,1768500638815,-18731.6549814,0.00017662,2]
[402054901,1768500638824,-170.53781957,0.000177,2]
[402054902,1768500638834,-500.0,0.00017762,2]
[402054903,1768500638843,-500.0,0.00017762,2]
[402054904,1768500638852,-200.0,0.000178,6]
[402054905,1768500638863,-408.22,0.00017832,2]
[402054906,1768500638873,-400.0,0.000179,6]
[402054907,1768500638883,-536.32316389,0.00017973,2]
[402054908,1768500638892,-500.0,0.00017973,2]
[402054909,1768500638903,-500.0,0.00017973,2]
[402054910,1768500638913,-214.30030878,0.00017994,2]
[402054911,1768500638923,-500.0,0.00017994,2]
[402054912,1768500638932,-500.0,0.00017994,2]
[402054913,1768500638942,-571.55631892,0.00017999,2]
[402054914,1768500638953,-500.0,0.00017999,2]
[402054915,1768500638962,-526.09785312,0.00017999,2]
[402054916,1768500638971,-876.0,0.00018163,2]
[402054917,1768500638982,-250.0,0.00018467,2]
[402054918,1768500638992,-300.0,0.00018467,2]
[402054919,1768500639001,-4966.69397156,0.00018467,2]
[402054920,1768500639011,-408.22,0.00018501,2]
[402054921,1768500639021,-500.0,0.00018521,2]
[402054922,1768500639032,-993.53425985,0.00018741,4]
[402054923,1768500639042,-420.0,0.00019063,2]
[402054924,1768500639051,-200.18708233,0.00019082,2]
[402054925,1768500639061,-1680.0,0.00019158,2]
[402054926,1768500639071,-408.22,0.0001917,2]
[402054927,1768500639080,-300.0,0.00019428,2]
[402054928,1768500639090,-248.05759627,0.00019428,2]
[402054929,1768500639100,-11829.11877916,0.00019652,2]
[402054930,1768500639110,-4851.74799825,0.00019684,2]
[402054931,1768500639123,-408.22,0.00019839,2]
[402054932,1768500639133,-4179.5971758,0.00019902,2]
[402054933,1768500639143,-993.53425985,0.00020019,7]
[402054934,1768500639155,-876.0,0.00020347,2]
[402054935,1768500639167,-932.5941872,0.00020402,2]
[402054936,1768500639177,-408.22,0.00020507,2]
[402054937,1768500639187,-587.0,0.00020812,2]
[402054938,1768500639197,-2351.0,0.00021018,2]
[402054939,1768500639207,-162.13070062,0.00021163,2]
[402054940,1768500639218,-158.61718939,0.00021187,2]
[402054941,1768500639228,-993.53425985,0.00021297,10]
[402054942,1768500639239,-511.39570715,0.00021378,2]
[402054943,1768500639249,-11829.11877916,0.0002184,2]
[402054944,1768500639260,-4851.74799825,0.00021869,2]
[402054945,1768500639270,-276.38,0.000219,2]
[402054946,1768500639280,-1101.0,0.00022503,2]
[402054947,1768500639290,-876.0,0.00022532,2]
[402054948,1768500639299,-993.53425985,0.00022574,14]
[402054949,1768500639309,-823.0,0.0002272,2]
[402054950,1768500639318,-1171.0,0.00023059,2]
[402054951,1768500639328,-1101.0,0.00023687,2]
[402054952,1768500639337,-1000.0,0.000238,2]
[402054953,1768500639347,-993.53425985,0.00023852,17]
[402054954,1768500639356,-11829.11877916,0.00024029,2]
[402054955,1768500639365,-4851.74799825,0.00024053,2]
[402054956,1768500639375,-168.0,0.00024116,2]
[402054957,1768500639385,-168.0,0.00024346,2]
[402054958,1768500639395,-168.0,0.00024444,2]
[402054959,1768500639406,-168.0,0.00024563,2]
[402054960,1768500639416,-168.0,0.00024664,2]
[402054961,1768500639425,-159.10567507,0.000247,2]
[402054962,1768500639435,-162.13070062,0.0002471,2]
[402054963,1768500639444,-876.0,0.00024716,2]
[402054964,1768500639454,-168.0,0.00024739,2]
[402054965,1768500639463,-168.0,0.0002474,2]
[402054966,1768500639473,-1111.0,0.00024804,2]
[402054967,1768500639483,-204.16924688,0.0002489,2]
[402054968,1768500639493,-23917.5321821,0.000249,2]
[402054969,1768500639503,-1101.0,0.00024934,2]
[402054970,1768500639514,-993.53425985,0.0002513,20]
[402054971,1768500639524,-168.0,0.00025187,2]
[402054972,1768500639533,-168.0,0.00025222,2]
[402054973,1768500639543,-168.0,0.00025323,2]
[402054974,1768500639552,-168.0,0.00025389,2]
[402054975,1768500639561,-168.0,0.00025408,2]
[402054976,1768500639570,-168.0,0.00025462,2]
[402054978,1768500639580,-1313.0,0.00025476,2]
[402054980,1768500639589,-168.0,0.00025649,2]
[402054981,1768500639599,-168.0,0.0002587,2]
[402054982,1768500639608,-168.0,0.00025922,2]
[402054983,1768500639618,-1105.46,0.00025973,2]
[402054984,1768500639628,-1313.0,0.00026028,2]
[402054985,1768500639637,-168.0,0.00026065,2]
[402054986,1768500639647,-168.0,0.00026079,2]
[402054987,1768500639661,-168.0,0.00026106,2]
[402054988,1768500639672,-168.0,0.00026121,2]
[402054989,1768500639682,-168.0,0.00026124,2]
[402054990,1768500639692,-11829.11877916,0.00026217,2]
[402054991,1768500639701,-4851.74799825,0.00026238,2]
[402054992,1768500639710,-1101.0,0.00026246,2]
[402054993,1768500639720,-168.0,0.00026255,2]
[402054994,1768500639729,-168.0,0.00026286,2]
[402054995,1768500639739,-1258.81748327,0.00026311,2]
[402054996,1768500639748,-13595.3660212,0.00026321,2]
[402054997,1768500639757,-993.53425985,0.00026408,23]
[402054998,1768500639767,-3064.82,0.00026591,2]
[402054999,1768500639777,-876.0,0.000269,2]
[402055000,1768500639786,-506.0,0.00027137,2]
[402055001,1768500639795,-374.0,0.000276,5]
[402055002,1768500639804,-1101.0,0.00027628,5]
[402055003,1768500639814,-993.53425985,0.00027686,26]
[402055004,1768500639823,-3776.45244981,0.00028193,2]
[402055005,1768500639832,-62268.37,0.00028203,10]
[402055006,1768500639841,-310.05,0.00028203,2]
[402055007,1768500639850,-1179.61,0.00028203,2]
[402055008,1768500639860,-9999.99,0.00028203,2]
[402055009,1768500639869,-150.99,0.00028203,2]
[402055010,1768500639879,-999.99,0.00028203,2]
[402055011,1768500639888,-9400.03,0.00028203,2]
[402055012,1768500639898,-214.76,0.00028203,2]
[402055013,1768500639909,-299.99,0.00028203,12]
[402055014,1768500639919,-162.13070062,0.00028258,2]
[402055015,1768500639928,-168.61625538,0.00028347,2]
[402055016,1768500639938,-11829.11877916,0.00028406,2]
[402055017,1768500639948,-4851.74799825,0.00028422,2]
[402055018,1768500639957,-150.0,0.0002863,2]
[402055019,1768500639967,-999.0,0.00028693,3]
[402055020,1768500639977,-993.53425985,0.00028964,30]
[402055021,1768500639986,-1101.0,0.00029009,5]
[402055022,1768500639995,-876.0,0.00029085,2]
[402055023,1768500640004,-168.61625538,0.0002954,56]
[402055024,1768500640014,-3033.5361975,0.00029655,2]
[402055025,1768500640023,-7105.20375735,0.00029688,2]
[402055026,1768500640033,-2769.309799,0.00030137,15]
[402055028,1768500640043,-5203.0,0.0003024,5]
[402055030,1768500640053,-511.51468279,0.00030242,34]
[402055031,1768500640062,-676.8734175,0.00030398,2]
[402055032,1768500640072,-1101.0,0.00030459,5]
[402055033,1768500640082,-11829.11877916,0.00030594,2]
[402055034,1768500640091,-4851.74799825,0.00030607,2]
[402055035,1768500640101,-168.61625538,0.00030734,110]
[402055036,1768500640111,-876.0,0.00031269,2]
[402055037,1768500640122,-1158.71,0.0003127,2]
[402055038,1768500640134,-150.0,0.00031493,2]
[402055039,1768500640143,-511.51468279,0.00031519,39]
[402055040,1768500640156,-159.10567507,0.000318,2]
[402055041,1768500640167,-162.13070062,0.00031805,2]
[402055042,1768500640176,-747.20812032,0.00031943,7]
[402055043,1768500640186,-1101.0,0.00031982,5]
[402055044,1768500640196,-159.47,0.00032642,120]
[402055045,1768500640206,-11829.11877916,0.00032783,2]
[402055046,1768500640216,-4851.74799825,0.00032791,2]
[402055047,1768500640225,-511.51468279,0.00032797,44]
[402055048,1768500640235,-506.0,0.00033011,8]
[402055049,1768500640245,-876.0,0.00033454,5]
[402055050,1768500640255,-1101.0,0.00033581,5]
[402055051,1768500640264,-180.0,0.000339,120]
[402055052,1768500640274,-511.51468279,0.00034075,49]
[402055053,1768500640283,-505.976,0.00034256,2]
[402055054,1768500640292,-150.0,0.00034356,2]
[402055055,1768500640302,-5504.56231195,0.00034488,14]
[402055056,1768500640312,-4027.62264625,0.00034788,14]
[402055057,1768500640322,-1000.0,0.000349,2]
[402055058,1768500640331,-11829.11877916,0.00034971,2]
[402055059,1768500640340,-151.0,0.00034973,14]
[402055060,1768500640349,-4851.74799825,0.00034976,2]
[402055061,1768500640359,-2692.36876086,0.00035088,14]
[402055062,1768500640368,-1510.9182,0.00035088,14]
[402055063,1768500640378,-1101.0,0.0003526,5]
[402055064,1768500640387,-162.13070062,0.00035353,2]
[402055065,1768500640396,-511.51468279,0.00035353,53]
[402055066,1768500640409,-1000.0,0.00035516,2]
[402055067,1768500640419,-262.7459,0.00035516,120]
[402055068,1768500640429,-173.12624248,0.00035516,2]
[402055069,1768500640439,-24303.0,0.00035589,2]
[402055070,1768500640448,-151.0,0.00035613,14]
[402055071,1768500640458,-500.0,0.00035615,10]
[402055072,1768500640468,-500.0,0.00035615,10]
[402055073,1768500640477,-150.0,0.00035615,2]
[402055074,1768500640487,-400.0,0.00035616,10]
[402055075,1768500640497,-27901.1510289,0.00035616,2]
[402055076,1768500640506,-500.0,0.00035616,10]
[402055077,1768500640515,-500.0,0.00035616,10]
[402055078,1768500640525,-500.0,0.00035616,10]
[402055079,1768500640535,-500.0,0.00035616,10]
[402055080,1768500640545,-500.0,0.00035616,10]
[402055081,1768500640555,-500.0,0.00035616,10]
[402055082,1768500640564,-21459.00868542,0.00035616,2]
[402055083,1768500640580,-245417.62769228,0.00035616,2]
[402055084,1768500640590,-500.0,0.00035616,10]
[402055085,1768500640600,-500.0,0.00035616,10]
[402055086,1768500640609,-558.18553611,0.00035616,10]
[402055087,1768500640619,-500.0,0.00035616,10]
[402055088,1768500640628,-500.0,0.00035616,10]
[402055089,1768500640637,-215.0,0.00035616,10]
[402055090,1768500640646,-234.46577144,0.00035616,10]
[402055091,1768500640659,-500.0,0.00035616,10]
[402055092,1768500640669,-540.2452807,0.00035616,10]
[402055093,1768500640678,-500.0,0.00035616,10]
[402055094,1768500640688,-616.72,0.00035616,10]
[402055095,1768500640697,-500.0,0.00035616,10]
[402055096,1768500640706,-500.0,0.00035616,10]
[402055097,1768500640715,-787.05,0.00035616,10]
[402055098,1768500640724,-500.0,0.00035616,10]
[402055099,1768500640734,-500.0,0.00035616,10]
[402055100,1768500640743,-521.71580588,0.00035616,10]
[402055101,1768500640753,-500.0,0.00035616,10]
[402055102,1768500640762,-500.0,0.00035616,10]
[402055103,1768500640772,-500.0,0.00035616,10]
[402055104,1768500640781,-701.21,0.00035616,10]
[402055105,1768500640790,-1046.98,0.00035616,10]
[402055106,1768500640800,-500.0,0.00035616,10]
[402055107,1768500640809,-520.27152931,0.00035616,10]
[402055108,1768500640819,-500.0,0.00035616,10]
[402055109,1768500640828,-500.0,0.00035616,10]
[402055110,1768500640838,-504.69971769,0.00035616,10]
[402055111,1768500640847,-500.0,0.00035616,10]
[402055112,1768500640856,-723.56,0.00035616,10]
[402055113,1768500640866,-500.0,0.00035616,10]
[402055114,1768500640875,-500.0,0.00035616,10]
[402055115,1768500640885,-547.77833206,0.00035616,10]
[402055116,1768500640894,-500.0,0.00035616,10]
[402055117,1768500640905,-500.0,0.00035616,10]
[402055118,1768500640915,-500.0,0.00035616,10]
[402055119,1768500640925,-500.0,0.00035616,10]
[402055120,1768500640934,-374.27361908,0.00035616,10]
[402055121,1768500640943,-513.11283036,0.00035616,10]
[402055122,1768500640952,-500.0,0.00035616,10]
[402055123,1768500640962,-468.2461495,0.00035616,10]
[402055124,1768500640971,-500.0,0.00035616,10]
[402055125,1768500640981,-500.0,0.00035616,10]
[402055126,1768500640991,-500.0,0.00035616,10]
[402055127,1768500641000,-500.0,0.00035616,10]
[402055128,1768500641009,-500.0,0.00035616,10]
[402055129,1768500641019,-500.0,0.00035616,10]
[402055130,1768500641028,-500.0,0.00035616,10]
[402055131,1768500641038,-500.0,0.00035616,7]
[402055132,1768500641048,-500.0,0.00035616,10]
[402055133,1768500641057,-500.0,0.00035616,10]
[402055134,1768500641067,-500.0,0.00035616,10]
[402055135,1768500641077,-500.0,0.00035616,10]
[402055136,1768500641086,-500.0,0.00035616,10]
[402055137,1768500641096,-500.0,0.00035616,10]
[402055138,1768500641105,-500.0,0.00035616,10]
[402055139,1768500641116,-500.0,0.00035616,10]
[402055140,1768500641129,-500.0,0.00035616,10]
[402055141,1768500641138,-774.5,0.00035616,10]
[402055142,1768500641148,-500.0,0.00035616,10]
[402055143,1768500641224,-559.13,0.00035616,10]
[402055144,1768500641234,-508.34,0.00035616,10]
[402055145,1768500641243,-1000.0,0.00035616,2]
[402055146,1768500641252,-500.0,0.00035616,10]
[402055147,1768500641261,-639.53,0.00035616,10]
[402055148,1768500641271,-500.0,0.00035616,10]
[402055149,1768500641280,-845.26,0.00035616,10]
[402055150,1768500641290,-996.04,0.00035616,10]
[402055151,1768500641299,-500.0,0.00035616,10]
[402055152,1768500641312,-500.0,0.00035616,10]
[402055153,1768500641321,-519.58013009,0.00035616,10]
[402055154,1768500641331,-500.0,0.00035616,10]
[402055155,1768500641340,-500.0,0.00035616,10]
[402055156,1768500641350,-533.28406069,0.00035616,10]
[402055157,1768500641359,-500.0,0.00035616,10]
[402055158,1768500641368,-500.0,0.00035616,10]
[402055159,1768500641377,-379.99688331,0.00035616,10]
[402055160,1768500641386,-500.0,0.00035616,10]
[402055161,1768500641396,-500.0,0.00035616,10]
[402055162,1768500641406,-573.85323138,0.00035616,10]
[402055163,1768500641415,-500.0,0.00035616,10]
[402055164,1768500641425,-503.64810618,0.00035616,10]
[402055165,1768500641434,-500.0,0.00035616,10]
[402055166,1768500641444,-490.7866183,0.00035616,10]
[402055167,1768500641454,-500.0,0.00035616,10]
[402055168,1768500641464,-500.0,0.00035616,10]
[402055169,1768500641473,-500.0,0.00035616,10]
[402055170,1768500641482,-985.47,0.00035616,10]
[402055171,1768500641492,-500.0,0.00035616,10]
[402055172,1768500641503,-600.62082133,0.00035616,10]
[402055173,1768500641512,-500.0,0.00035616,10]
[402055174,1768500641522,-500.0,0.00035616,10]
[402055175,1768500641531,-500.0,0.00035616,10]
[402055176,1768500641540,-500.0,0.00035616,10]
[402055177,1768500641549,-500.0,0.00035616,10]
[402055178,1768500641559,-500.0,0.00035616,10]
[402055179,1768500641568,-500.0,0.00035616,10]
[402055180,1768500641578,-649.82003142,0.00035616,10]
[402055181,1768500641587,-500.0,0.00035616,10]
[402055182,1768500641597,-500.0,0.00035616,10]
[402055183,1768500641606,-328.38,0.00035616,10]
[402055184,1768500641615,-500.0,0.00035616,10]
[402055185,1768500641625,-500.0,0.00035616,10]
[402055186,1768500641635,-500.0,0.00035616,10]
[402055187,1768500641644,-500.0,0.00035616,10]
[402055188,1768500641655,-500.0,0.00035616,10]
[402055189,1768500641664,-500.0,0.00035616,10]
[402055190,1768500641674,-987.21,0.00035616,10]
[402055191,1768500641683,-500.0,0.00035616,10]
[402055192,1768500641692,-500.0,0.00035616,10]
[402055193,1768500641702,-500.0,0.00035616,10]
[402055194,1768500641711,-500.0,0.00035616,10]
[402055195,1768500641720,-539.68209018,0.00035616,10]
[402055196,1768500641729,-500.0,0.00035616,2]
[402055197,1768500641739,-500.0,0.00035616,10]
[402055198,1768500641749,-500.0,0.00035616,10]
[402055199,1768500641758,-500.0,0.00035616,10]
[402055200,1768500641767,-645.47,0.00035616,10]
[402055201,1768500641776,-500.0,0.00035616,10]
[402055202,1768500641785,-500.0,0.00035616,10]
[402055203,1768500641795,-500.0,0.00035616,10]
[402055204,1768500641804,-500.0,0.00035616,10]
[402055205,1768500641813,-500.0,0.00035616,10]
[402055206,1768500641823,-500.0,0.00035616,10]
[402055207,1768500641832,-506.89207522,0.00035616,10]
[402055208,1768500641841,-500.0,0.00035616,10]
[402055209,1768500641850,-540.9824732,0.00035616,10]
[402055210,1768500641860,-500.0,0.00035616,10]
[402055211,1768500641869,-873.78,0.00035616,10]
[402055212,1768500641878,-500.0,0.00035616,10]
[402055213,1768500641887,-580.42,0.00035616,10]
[402055214,1768500641897,-500.0,0.00035616,10]
[402055215,1768500641908,-506.93652836,0.00035616,10]
[402055216,1768500641917,-500.0,0.00035616,10]
[402055217,1768500641927,-506.88171485,0.00035616,10]
[402055218,1768500641935,-500.0,0.00035616,10]
[402055219,1768500641945,-544.93831273,0.00035616,10]
[402055220,1768500641954,-844.87,0.00035616,10]
[402055221,1768500641963,-618.81525913,0.00035616,10]
[402055222,1768500641973,-515.09060099,0.00035616,10]
[402055223,1768500641982,-900.95,0.00035616,10]
[402055224,1768500641992,-599.48,0.00035616,10]
[402055225,1768500642002,-531.96303153,0.00035616,10]
[402055226,1768500642011,-929.39,0.00035616,10]
[402055227,1768500642021,-500.0,0.00035616,10]
[402055228,1768500642030,-500.0,0.00035616,10]
[402055229,1768500642039,-500.0,0.00035616,10]
[402055230,1768500642049,-500.0,0.00035616,10]
[402055231,1768500642059,-500.0,0.00035616,10]
[402055232,1768500642068,-500.0,0.00035616,10]
[402055233,1768500642077,-517.94894216,0.00035616,10]
[402055234,1768500642086,-500.0,0.00035616,10]
[402055235,1768500642096,-500.0,0.00035616,10]
[402055236,1768500642105,-500.0,0.00035616,10]
[402055237,1768500642114,-500.0,0.00035616,10]
[402055238,1768500642125,-736.73,0.00035616,10]
[402055239,1768500642136,-500.0,0.00035616,10]
[402055240,1768500642145,-500.0,0.00035616,10]
[402055241,1768500642156,-500.0,0.00035616,10]
[402055242,1768500642165,-649.71,0.00035616,10]
[402055243,1768500642174,-527.56,0.00035616,10]
[402055244,1768500642184,-500.0,0.00035616,10]
[402055245,1768500642193,-500.0,0.00035616,10]
[402055246,1768500642206,-650.66,0.00035616,10]
[402055247,1768500642215,-500.0,0.00035616,10]
[402055248,1768500642224,-500.0,0.00035616,10]
[402055249,1768500642233,-500.0,0.00035616,10]
[402055250,1768500642243,-500.0,0.00035616,10]
[402055251,1768500642252,-501.63821731,0.00035616,10]
[402055252,1768500642262,-500.0,0.00035616,10]
[402055253,1768500642271,-500.0,0.00035616,10]
[402055254,1768500642280,-500.0,0.00035616,10]
[402055255,1768500642289,-500.0,0.00035616,10]
[402055256,1768500642299,-500.0,0.00035616,10]
[402055257,1768500642308,-500.0,0.00035616,10]
[402055258,1768500642317,-500.0,0.00035616,10]
[402055259,1768500642327,-508.55,0.00035616,10]
[402055260,1768500642337,-500.0,0.00035616,10]
[402055261,1768500642346,-500.0,0.00035616,10]
[402055263,1768500642356,-500.0,0.00035616,10]
[402055264,1768500642365,-500.0,0.00035616,2]
[402055265,1768500642374,-500.0,0.00035616,10]
[402055266,1768500642383,-503.12517718,0.00035616,10]
[402055267,1768500642392,-500.0,0.00035616,10]
[402055268,1768500642401,-500.0,0.00035616,10]
[402055269,1768500642411,-500.0,0.00035616,10]
[402055270,1768500642420,-500.0,0.00035616,10]
[402055271,1768500642429,-780.59,0.00035616,10]
[402055272,1768500642439,-500.85,0.00035616,10]
[402055273,1768500642448,-500.0,0.00035616,10]
[402055274,1768500642457,-1220.78,0.00035616,10]
[402055275,1768500642467,-500.0,0.00035616,10]
[402055276,1768500642476,-500.0,0.00035616,10]
[402055277,1768500642485,-500.0,0.00035616,10]
[402055278,1768500642494,-1032.66,0.00035616,10]
[402055279,1768500642503,-500.0,0.00035616,10]
[402055280,1768500642513,-500.0,0.00035616,10]
[402055281,1768500642523,-172.20664582,0.00035616,10]
[402055282,1768500642532,-500.0,0.00035616,10]
[402055283,1768500642541,-500.0,0.00035616,10]
[402055284,1768500642550,-500.0,0.00035616,10]
[402055285,1768500642559,-543.0,0.00035616,10]
[402055287,1768500642569,-500.0,0.00035616,10]
[402055289,1768500642578,-500.0,0.00035616,10]
[402055291,1768500642587,-500.0,0.00035616,10]
[402055292,1768500642596,-500.0,0.00035616,10]
[402055293,1768500642605,-500.0,0.00035616,10]
[402055294,1768500642615,-500.0,0.00035616,10]
[402055295,1768500642624,-500.0,0.00035616,10]
[402055296,1768500642633,-500.0,0.00035616,10]
[402055297,1768500642642,-500.0,0.00035616,10]
[402055298,1768500642651,-526.83017494,0.00035616,10]
[402055299,1768500642661,-495.44096008,0.00035616,10]
[402055300,1768500642670,-500.0,0.00035616,10]
[402055301,1768500642680,-500.0,0.00035616,10]
[402055302,1768500642689,-1008.51,0.00035616,10]
[402055303,1768500642698,-500.0,0.00035616,10]
[402055304,1768500642707,-513.84819323,0.00035616,10]
[402055305,1768500642717,-500.0,0.00035616,10]
[402055306,1768500642726,-874.81,0.00035616,10]
[402055307,1768500642735,-819.94,0.00035616,10]
[402055308,1768500642745,-500.0,0.00035616,10]
[402055309,1768500642754,-500.0,0.00035616,10]
[402055310,1768500642764,-570.72,0.00035616,10]
[402055311,1768500642773,-500.0,0.00035616,10]
[402055312,1768500642782,-500.0,0.00035616,10]
[402055313,1768500642791,-500.0,0.00035616,10]
[402055314,1768500642801,-500.0,0.00035616,10]
[402055315,1768500642811,-714.82,0.00035616,10]
[402055316,1768500642820,-500.0,0.00035616,10]
[402055317,1768500642830,-500.0,0.00035616,10]
[402055318,1768500642839,-793.06,0.00035616,10]
[402055319,1768500642849,-731.97,0.00035616,10]
[402055320,1768500642858,-500.0,0.00035616,10]
[402055321,1768500642867,-500.0,0.00035616,10]
[402055322,1768500642876,-500.0,0.00035616,10]
[402055323,1768500642885,-500.0,0.00035616,10]
[402055324,1768500642895,-500.0,0.00035616,10]
[402055325,1768500642905,-617.26,0.00035616,10]
[402055326,1768500642914,-500.0,0.00035616,10]
[402055327,1768500642923,-500.0,0.00035616,10]
[402055328,1768500642932,-500.0,0.00035616,10]
[402055329,1768500642941,-500.0,0.00035616,10]
[402055330,1768500642950,-500.0,0.00035616,10]
[402055331,1768500642959,-500.0,0.00035616,10]
[402055332,1768500642968,-500.0,0.00035616,10]
[402055333,1768500642978,-500.0,0.00035616,10]
[402055335,1768500642987,-577.49,0.00035616,10]
[402055337,1768500642996,-500.0,0.00035616,10]
[402055339,1768500643005,-545.95,0.00035616,10]
[402055341,1768500643014,-500.0,0.00035616,10]
[402055343,1768500643023,-527.48196519,0.00035616,10]
[402055344,1768500643032,-720.0,0.00035616,10]
[402055345,1768500643041,-609.57,0.00035616,10]
[402055346,1768500643050,-500.0,0.00035616,10]
[402055347,1768500643059,-500.0,0.00035616,10]
[402055348,1768500643068,-522.43741367,0.00035616,10]
[402055349,1768500643077,-500.0,0.00035616,10]
[402055350,1768500643086,-500.0,0.00035616,10]
[402055351,1768500643095,-500.0,0.00035616,10]
[402055352,1768500643104,-500.0,0.00035616,10]
[402055353,1768500643114,-213.78918078,0.00035616,10]
[402055354,1768500643124,-500.0,0.00035616,10]
[402055355,1768500643134,-500.0,0.00035616,10]
[402055356,1768500643144,-500.0,0.00035616,10]
[402055357,1768500643153,-798.44,0.00035616,10]
[402055358,1768500643163,-521.73,0.00035616,10]
[402055360,1768500643173,-500.0,0.00035616,10]
[402055361,1768500643182,-500.0,0.00035616,10]
[402055362,1768500643192,-500.0,0.00035616,10]
[402055363,1768500643201,-517.34,0.00035616,10]
[402055364,1768500643211,-647.37,0.00035616,10]
[402055365,1768500643220,-500.0,0.00035616,10]
[402055366,1768500643229,-551.69777657,0.00035616,10]
[402055367,1768500643239,-500.0,0.00035616,10]
[402055368,1768500643248,-509.95057913,0.00035616,10]
[402055369,1768500643257,-500.0,0.00035616,10]
[402055370,1768500643267,-500.0,0.00035616,10]
[402055371,1768500643276,-500.0,0.00035616,10]
[402055372,1768500643285,-500.0,0.00035616,10]
[402055373,1768500643295,-500.0,0.00035616,10]
[402055374,1768500643304,-500.0,0.00035616,10]
[402055375,1768500643313,-864.47,0.00035616,10]